bitfinex/quotes_SOLUSD_20220207
["timestamp","ask_amount","ask_price","bid_price","bid_amount"]
[1644217988794,46.86143092,118.24,118.16,1.20099166]
[1644217988995,40.86143092,118.24,118.17,48.14709816]
[1644217989194,40.86143092,118.24,118.17,48.39709816]
[1644217989896,40.86143092,118.24,118.17,0.25]
[1644217990095,40.86143092,118.24,118.15,25.51779166]
[1644217990294,40.86143092,118.24,118.15,25.76779166]
[1644217990499,53.55493092,118.24,118.15,0.25]
[1644217990698,59.55493092,118.24,118.14,7.20099166]
[1644217990996,59.55493092,118.24,118.15,38.99482539]
[1644217992198,59.55493092,118.24,118.15,39.24482539]
[1644217992597,61.66054182,118.24,118.15,38.99482539]
[1644217992797,73.87054182,118.24,118.13,26.15069166]
[1644217993097,73.87054182,118.24,118.13,1.20099166]
[1644217993297,73.87054182,118.24,118.13,0.25]
[1644217994098,4.23,118.23,118.13,0.25]
[1644217994299,12.6978,118.2,118.12,59.53345428]
[1644217994502,46.8567452,118.19,118.12,59.53345428]
[1644217994699,53.1067452,118.19,118.12,59.53345428]
[1644217996201,47.1067452,118.19,118.12,59.53345428]
[1644217998202,47.1067452,118.19,118.14,45.89485104]
[1644217999401,23.6315,118.21,118.14,45.89485104]
[1644217999601,23.6315,118.21,118.14,47.3458427]
[1644217999802,23.6315,118.21,118.14,0.25]
[1644218000003,29.6315,118.21,118.14,0.25]
[1644218000804,48.41228927,118.2,118.13,47.45232032]
[1644218001002,48.41228927,118.2,118.13,47.20232032]
[1644218001202,48.66228927,118.2,118.13,47.45232032]
[1644218001802,29.6315,118.21,118.13,47.45232032]
[1644218001803,23.6315,118.21,118.13,47.45232032]
[1644218002004,12.6938,118.24,118.14,1.20099166]
[1644218002205,42.2876,118.24,118.14,25.20339166]
[1644218002805,36.06666534,118.23,118.15,36.78589168]
[1644218003205,42.06666534,118.23,118.15,37.03589168]
[1644218003606,42.06666534,118.23,118.15,38.23688334]
[1644218003805,42.31666534,118.23,118.15,38.23688334]
[1644218006112,42.31666534,118.23,118.15,37.03589168]
[1644218007217,36.31666534,118.23,118.15,37.03589168]
[1644218007416,23.5938,118.24,118.15,38.23688334]
[1644218007619,22.8614,118.27,118.17,1.20099166]
[1644218007819,12.21,118.29,118.18,1.20099166]
[1644218007820,1.20513798,118.29,118.18,1.20099166]
[1644218008021,13.41513798,118.32,118.2,1.20099166]
[1644218008218,1.20513798,118.32,118.2,1.45099166]
[1644218008418,46.05483847,118.31,118.21,46.52669051]
[1644218008617,1.20513798,118.32,118.24,12.6801]
[1644218008817,1.20513798,118.32,118.24,12.9301]
[1644218009142,1.20513798,118.35,118.25,12.21]
[1644218009316,1.20513798,118.35,118.25,14.23630367]
[1644218009516,34.30147352,118.34,118.26,44.5297234]
[1644218009716,34.30147352,118.34,118.26,50.7797234]
[1644218010718,34.30147352,118.34,118.26,52.55602707]
[1644218015523,34.30147352,118.34,118.26,50.5297234]
[1644218015726,40.55147352,118.34,118.26,44.5297234]
[1644218018949,40.30147352,118.34,118.26,44.5297234]
[1644218019150,40.30147352,118.34,118.26,44.7797234]
[1644218019851,42.40708442,118.34,118.26,44.7797234]
[1644218020250,40.55147352,118.34,118.26,44.7797234]
[1644218020651,53.23477352,118.34,118.26,44.7797234]
[1644218021252,47.23477352,118.34,118.26,44.7797234]
[1644218021450,53.23477352,118.34,118.26,44.7797234]
[1644218023456,55.34038442,118.34,118.26,44.7797234]
[1644218024854,49.34038442,118.34,118.22,24.5665]
[1644218025054,67.55038442,118.34,118.22,30.5665]
[1644218025253,67.55038442,118.34,118.22,24.5665]
[1644218025856,67.55038442,118.34,118.23,47.55288157]
[1644218026856,67.55038442,118.34,118.23,47.80288157]
[1644218030560,32.9989109,118.34,118.23,47.80288157]
[1644218030860,48.5548,118.35,118.23,67.78918524]
[1644218031063,14.3156109,118.37,118.24,4.226]
[1644218031265,24.71643798,118.38,118.24,4.226]
[1644218031266,23.5113,118.38,118.25,12.21]
[1644218031466,6.0,118.37,118.25,13.98630367]
[1644218031663,38.43139667,118.36,118.26,45.09575279]
[1644218031860,38.43139667,118.36,118.26,59.55025646]
[1644218032062,38.43139667,118.36,118.26,65.80025646]
[1644218032261,38.68139667,118.36,118.26,51.34575279]
[1644218032459,56.89139667,118.36,118.26,45.09575279]
[1644218032660,61.11739667,118.36,118.26,45.09575279]
[1644218032859,63.22300757,118.36,118.26,45.09575279]
[1644218033061,63.22300757,118.36,118.22,12.21]
[1644218033259,63.22300757,118.36,118.22,41.7204]
[1644218033260,48.0077,118.35,118.22,41.7204]
[1644218033461,12.684,118.33,118.22,54.4028]
[1644218033660,18.684,118.33,118.22,54.4028]
[1644218033862,18.934,118.33,118.22,54.4028]
[1644218034260,18.934,118.33,118.23,47.34250649]
[1644218034261,45.11274776,118.32,118.23,47.34250649]
[1644218034662,45.36274776,118.32,118.23,47.59250649]
[1644218034862,58.04834776,118.32,118.23,53.59250649]
[1644218035061,64.04834776,118.32,118.23,47.59250649]
[1644218036063,64.04834776,118.32,118.23,53.59250649]
[1644218036265,58.04834776,118.32,118.23,53.34250649]
[1644218036466,64.04834776,118.32,118.23,53.34250649]
[1644218036666,64.04834776,118.32,118.23,47.34250649]
[1644218037564,64.04834776,118.32,118.23,0.25]
[1644218037764,65.25348574,118.32,118.22,0.25]
[1644218038165,65.25348574,118.32,118.21,31.82929166]
[1644218038565,65.25348574,118.32,118.22,37.14930567]
[1644218038765,77.46348574,118.32,118.22,37.39930567]
[1644218041766,77.21348574,118.32,118.22,37.39930567]
[1644218043170,77.46348574,118.32,118.22,37.39930567]
[1644218043569,77.46348574,118.32,118.22,43.39930567]
[1644218043770,77.46348574,118.32,118.22,37.39930567]
[1644218048872,71.46348574,118.32,118.22,43.39930567]
[1644218049072,77.46348574,118.32,118.22,37.39930567]
[1644218049773,13.89073798,118.32,118.23,1.77946192]
[1644218049974,23.0831,118.33,118.23,2.98045358]
[1644218050172,13.41513798,118.34,118.23,9.23045358]
[1644218050173,1.20513798,118.34,118.23,9.23045358]
[1644218050372,6.0,118.34,118.24,2.98045358]
[1644218050572,32.12973798,118.35,118.24,8.98045358]
[1644218050772,62.26723225,118.35,118.25,46.83014759]
[1644218051172,62.51723225,118.35,118.26,1.77946192]
[1644218051374,62.51723225,118.35,118.27,37.23545311]
[1644218051773,62.51723225,118.35,118.27,37.48545311]
[1644218052375,61.31209427,118.35,118.27,37.48545311]
[1644218052577,61.31209427,118.35,118.27,45.83545311]
[1644218052976,68.51723225,118.35,118.27,45.58545311]
[1644218053176,1.20513798,118.34,118.27,45.58545311]
[1644218053377,35.4935211,118.33,118.27,45.58545311]
[1644218053577,35.4935211,118.33,118.27,37.23545311]
[1644218053578,41.4935211,118.33,118.27,37.23545311]
[1644218053778,35.7435211,118.33,118.27,37.23545311]
[1644218056782,35.7435211,118.33,118.27,37.48545311]
[1644218056984,35.7435211,118.33,118.27,37.23545311]
[1644218058502,35.7435211,118.33,118.23,1.20099166]
[1644218058702,35.7435211,118.33,118.23,1.45099166]
[1644218059002,35.7435211,118.33,118.23,7.45099166]
[1644218059603,35.7435211,118.33,118.24,39.15042306]
[1644218059806,35.7435211,118.33,118.24,39.40042306]
[1644218060003,35.7435211,118.33,118.24,45.40042306]
[1644218060204,35.7435211,118.33,118.24,39.40042306]
[1644218062409,35.4935211,118.33,118.24,39.40042306]
[1644218063007,35.4935211,118.33,118.24,41.17988498]
[1644218064008,35.7435211,118.33,118.24,41.17988498]
[1644218064608,35.7435211,118.33,118.24,48.38087664]
[1644218065208,35.7435211,118.33,118.24,45.40042306]
[1644218065613,35.7435211,118.33,118.24,47.17988498]
[1644218069913,0.25,118.33,118.24,47.17988498]
[1644218070116,0.25,118.33,118.24,71.73667664]
[1644218070315,45.06213798,118.35,118.24,71.73667664]
[1644218071115,82.32401431,118.35,118.24,71.73667664]
[1644218071316,81.11887633,118.35,118.24,71.73667664]
[1644218071715,75.11887633,118.35,118.24,71.73667664]
[1644218072216,81.11887633,118.35,118.24,71.73667664]
[1644218072416,75.11887633,118.35,118.24,71.73667664]
[1644218073118,81.11887633,118.35,118.24,71.73667664]
[1644218073319,6.0,118.35,118.24,96.62647664]
[1644218073519,6.0,118.35,118.25,1.20099166]
[1644218073720,30.3103,118.36,118.26,1.20099166]
[1644218073919,24.3103,118.36,118.26,2.97598795]
[1644218074121,30.3103,118.36,118.26,3.22598795]
[1644218074321,76.48538018,118.36,118.27,44.19933451]
[1644218074520,76.73538018,118.36,118.27,44.19933451]
[1644218074722,76.73538018,118.36,118.27,44.44933451]
[1644218076322,70.73538018,118.36,118.27,44.44933451]
[1644218076523,46.42508018,118.36,118.29,36.95606831]
[1644218076724,46.17508018,118.36,118.29,37.20606831]
[1644218078125,46.42508018,118.36,118.29,37.20606831]
[1644218082232,46.42508018,118.36,118.29,36.95606831]
[1644218082430,52.42508018,118.36,118.29,36.95606831]
[1644218083033,53.63021816,118.36,118.29,36.95606831]
[1644218083231,52.42508018,118.36,118.29,37.20606831]
[1644218087234,52.42508018,118.36,118.29,36.95606831]
[1644218087434,52.42508018,118.36,118.29,37.20606831]
[1644218088234,52.42508018,118.36,118.29,36.95606831]
[1644218088435,53.63021816,118.36,118.29,36.95606831]
[1644218088834,53.63021816,118.36,118.29,37.20606831]
[1644218089036,53.63021816,118.36,118.29,36.95606831]
[1644218089241,53.63021816,118.36,118.29,37.20606831]
[1644218089443,52.42508018,118.36,118.29,37.20606831]
[1644218089641,53.63021816,118.36,118.29,37.20606831]
[1644218089843,52.42508018,118.36,118.29,37.20606831]
[1644218090044,53.63021816,118.36,118.29,37.20606831]
[1644218091244,53.63021816,118.36,118.29,0.25]
[1644218091443,24.4415,118.35,118.25,14.12969166]
[1644218091661,30.4415,118.35,118.24,7.20189461]
[1644218091861,44.10663798,118.35,118.24,1.77590295]
[1644218092077,1.20513798,118.34,118.22,1.20099166]
[1644218092261,49.35371943,118.33,118.23,41.91735757]
[1644218092664,68.28881943,118.33,118.23,41.91735757]
[1644218092863,23.4063,118.32,118.23,41.91735757]
[1644218093065,47.36445101,118.31,118.23,41.91735757]
[1644218093267,47.61445101,118.31,118.23,41.91735757]
[1644218093464,53.61445101,118.31,118.23,41.91735757]
[1644218094065,66.30095101,118.31,118.23,41.91735757]
[1644218094865,66.30095101,118.31,118.23,42.16735757]
[1644218095065,53.61445101,118.31,118.23,42.16735757]
[1644218095266,47.61445101,118.31,118.23,43.94326052]
[1644218096567,47.36445101,118.31,118.23,43.94326052]
[1644218097568,47.36445101,118.31,118.23,49.94326052]
[1644218097967,48.77513798,118.35,118.23,54.17026052]
[1644218098168,54.77513798,118.35,118.24,23.3578]
[1644218098368,28.6778,118.35,118.24,32.3558]
[1644218098570,6.0,118.35,118.25,1.77590295]
[1644218098767,42.73063798,118.35,118.24,6.25]
[1644218098967,44.51150822,118.34,118.26,37.88902829]
[1644218099167,50.51150822,118.34,118.24,0.25]
[1644218099371,23.3155,118.33,118.24,0.25]
[1644218099572,29.3155,118.33,118.24,0.25]
[1644218099774,29.5655,118.33,118.22,24.23109166]
[1644218100175,44.74479645,118.32,118.23,44.5029112]
[1644218100575,50.99479645,118.32,118.23,46.52881415]
[1644218101075,50.74479645,118.32,118.23,46.52881415]
[1644218101276,50.99479645,118.32,118.23,46.52881415]
[1644218101875,50.74479645,118.32,118.23,46.52881415]
[1644218102874,50.74479645,118.32,118.23,44.7529112]
[1644218103274,50.74479645,118.32,118.23,46.52968764]
[1644218103680,50.74479645,118.32,118.23,52.52968764]
[1644218103877,44.74479645,118.32,118.23,52.52968764]
[1644218105079,44.74479645,118.32,118.23,64.73968764]
[1644218105679,44.74479645,118.32,118.23,78.6214793]
[1644218106684,44.74479645,118.32,118.23,87.1174793]
[1644218109685,50.74479645,118.32,118.23,87.1174793]
[1644218109885,44.74479645,118.32,118.23,87.1174793]
[1644218115392,44.99479645,118.32,118.23,87.1174793]
[1644218115997,23.3155,118.33,118.23,87.1174793]
[1644218116199,6.0,118.33,118.24,1.20099166]
[1644218116399,6.0,118.33,118.25,1.20099166]
[1644218116703,31.11513798,118.36,118.25,15.9026446]
[1644218116896,24.281,118.35,118.26,22.5065]
[1644218117096,45.01593306,118.34,118.27,37.87335004]
[1644218117297,30.281,118.35,118.27,38.12335004]
[1644218117498,30.281,118.35,118.27,39.89570298]
[1644218118523,78.54614903,118.35,118.27,39.89570298]
[1644218118925,78.54614903,118.35,118.27,52.57250298]
[1644218120026,78.54614903,118.35,118.27,38.12335004]
[1644218120229,78.79614903,118.35,118.27,37.87335004]
[1644218121429,91.47894903,118.35,118.24,26.05519166]
[1644218121628,91.47894903,118.35,118.24,25.24919166]
[1644218121831,94.78969791,118.35,118.24,0.25]
[1644218122031,13.41513798,118.34,118.24,0.25]
[1644218122234,13.66513798,118.34,118.23,6.0]
[1644218122433,13.66513798,118.34,118.22,1.20099166]
[1644218122434,45.13409657,118.33,118.22,1.20099166]
[1644218122636,12.6922,118.27,118.2,1.20437995]
[1644218122834,43.86227913,118.26,118.19,48.78222552]
[1644218123232,50.11227913,118.26,118.15,2.39889295]
[1644218123532,22.7967,118.25,118.15,4.80702506]
[1644218123732,23.0467,118.25,118.16,11.42874256]
[1644218123931,41.7399,118.25,118.16,11.42874256]
[1644218124132,29.0467,118.25,118.14,11.42874256]
[1644218124338,29.0467,118.25,118.15,66.61295241]
[1644218124533,28.7967,118.25,118.15,66.61295241]
[1644218124734,6.0,118.25,118.16,2.405697]
[1644218124937,6.0,118.25,118.17,12.6879]
[1644218125234,30.6917,118.26,118.17,18.9379]
[1644218125634,30.6917,118.26,118.17,17.963268]
[1644218125835,24.6917,118.26,118.17,41.340868]
[1644218129040,24.6917,118.26,118.17,53.550868]
[1644218129940,41.38593105,118.25,118.17,53.550868]
[1644218130142,41.38593105,118.25,118.17,35.8376]
[1644218130342,41.63593105,118.25,118.17,35.8376]
[1644218130540,41.38593105,118.25,118.17,35.8376]
[1644218132045,24.6917,118.26,118.17,35.8376]
[1644218132443,30.6917,118.26,118.17,35.8376]
[1644218132844,24.6917,118.26,118.17,35.8376]
[1644218133043,64.74006455,118.26,118.17,35.8376]
[1644218133247,23.3671,118.25,118.17,35.8376]
[1644218134049,23.3671,118.25,118.17,41.8376]
[1644218134449,6.0,118.25,118.17,41.8376]
[1644218134651,46.04836455,118.26,118.17,41.8376]
[1644218135049,46.04836455,118.26,118.15,67.59435241]
[1644218135248,24.6925,118.25,118.15,67.59435241]
[1644218135650,30.9425,118.25,118.15,67.59435241]
[1644218137069,43.636,118.25,118.15,67.59435241]
[1644218138273,43.636,118.25,118.15,67.84435241]
[1644218140676,43.636,118.25,118.14,22.9794]
[1644218140875,43.636,118.25,118.11,23.783]
[1644218140876,12.21,118.24,118.11,23.783]
[1644218141078,12.6967,118.22,118.12,24.8047]
[1644218141277,24.3479,118.21,118.12,24.8047]
[1644218141480,24.3479,118.21,118.1,12.92951024]
[1644218141681,0.31836275,118.17,118.1,0.23391024]
[1644218141877,12.52836275,118.17,118.1,0.23391024]
[1644218142080,24.2683,118.16,118.1,0.23391024]
[1644218142278,37.2213,118.16,118.1,0.23391024]
[1644218142483,12.21,118.15,118.1,0.23391024]
[1644218142680,69.76688572,118.14,118.1,0.23391024]
[1644218143082,75.76688572,118.14,118.1,0.23391024]
[1644218143280,75.76688572,118.14,118.11,0.0629]
[1644218143683,6.0,118.14,118.11,0.0629]
[1644218144183,24.6925,118.15,118.11,0.0629]
[1644218144184,30.6925,118.15,118.11,0.0629]
[1644218144382,0.25,118.14,118.11,0.0629]
[1644218144783,39.62665059,118.14,118.11,0.0629]
[1644218144985,39.37665059,118.14,118.11,0.0629]
[1644218145183,45.37665059,118.14,118.11,0.0629]
[1644218146787,6.0,118.14,118.11,0.0629]
[1644218146986,30.6925,118.15,118.11,0.0629]
[1644218147186,30.9425,118.15,118.11,0.0629]
[1644218147688,48.48276048,118.14,118.11,0.0629]
[1644218148086,54.48276048,118.14,118.11,0.0629]
[1644218150090,24.6925,118.15,118.11,0.0629]
[1644218150294,24.9425,118.15,118.11,0.0629]
[1644218150492,24.6925,118.15,118.11,0.0629]
[1644218151791,23.4797,118.17,118.11,0.0629]
[1644218152194,29.4797,118.17,118.11,0.0629]
[1644218154194,29.7297,118.17,118.11,0.0629]
[1644218154997,6.0,118.17,118.11,0.0629]
[1644218155198,41.54462386,118.18,118.11,0.0629]
[1644218156199,41.79462386,118.18,118.11,0.0629]
[1644218156499,41.54462386,118.18,118.11,0.0629]
[1644218156698,41.79462386,118.18,118.11,0.0629]
[1644218159802,24.2122,118.17,118.11,0.0629]
[1644218160100,42.4222,118.17,118.11,0.0629]
[1644218160300,42.6722,118.17,118.11,0.0629]
[1644218160901,55.3749,118.17,118.11,0.0629]
[1644218164104,52.8949873,118.17,118.11,0.0629]
[1644218170110,52.6449873,118.17,118.11,0.0629]
[1644218171612,40.4349873,118.17,118.11,0.0629]
[1644218172213,40.6849873,118.17,118.11,0.0629]
[1644218176615,52.8949873,118.17,118.11,0.0629]
[1644218177016,55.0005982,118.17,118.11,0.0629]
[1644218178021,59.2325982,118.17,118.11,0.0629]
[1644218178218,57.1269873,118.17,118.11,0.0629]
[1644218179228,52.8949873,118.17,118.11,0.0629]
[1644218181429,46.8949873,118.17,118.11,0.0629]
[1644218182629,52.8949873,118.17,118.11,0.0629]
[1644218183029,75.01503897,118.17,118.11,0.0629]
[1644218183632,81.35264987,118.17,118.11,0.0629]
[1644218183830,233.93264987,118.17,118.11,0.0629]
[1644218185231,152.58,118.15,118.11,0.0629]
[1644218185446,48.9423,118.14,118.11,0.0629]
[1644218185647,54.9423,118.14,118.11,0.0629]
[1644218185847,55.1923,118.14,118.11,0.0629]
[1644218186049,72.87413598,118.14,118.11,0.0629]
[1644218186355,46.1434901,118.13,118.11,0.0629]
[1644218186549,12.21,118.12,118.11,0.0629]
[1644218186747,12.46,118.12,118.11,0.0629]
[1644218186948,18.46,118.12,118.11,0.0629]
[1644218187349,18.21,118.12,118.11,0.0629]
[1644218188751,18.46,118.12,118.11,0.0629]
[1644218188952,18.46,118.12,118.05,0.25]
[1644218189150,18.46,118.12,118.08,0.86735176]
[1644218189351,12.7095,118.11,118.08,0.86735176]
[1644218189550,24.9195,118.11,118.08,0.86735176]
[1644218189750,44.95346234,118.1,118.08,0.86735176]
[1644218190151,51.20346234,118.1,118.08,0.86735176]
[1644218193155,12.21,118.09,118.01,22.8187]
[1644218193355,12.46,118.09,118.01,22.8187]
[1644218193556,18.46,118.09,118.01,22.8187]
[1644218194058,18.46,118.09,118.0,0.42356506]
[1644218194255,42.54510895,118.08,118.0,0.42356506]
[1644218194455,54.75510895,118.08,118.0,0.42356506]
[1644218194653,61.00510895,118.08,118.0,0.42356506]
[1644218198560,61.00510895,118.08,117.98,56.91025109]
[1644218199263,60.75510895,118.08,117.98,56.91025109]
[1644218199461,42.54510895,118.08,117.98,69.12025109]
[1644218199663,24.696,118.1,117.99,11.39791672]
[1644218199861,24.696,118.1,118.0,24.3324]
[1644218200061,6.0,118.1,118.0,47.2736]
[1644218200265,6.0,118.1,118.0,47.5236]
[1644218200468,28.942,118.11,118.0,47.5236]
[1644218200663,48.71310209,118.1,118.01,48.07257456]
[1644218200863,48.71310209,118.1,118.01,48.32257456]
[1644218201064,54.71310209,118.1,118.01,48.32257456]
[1644218201963,54.71310209,118.1,118.01,54.32257456]
[1644218202365,54.71310209,118.1,118.01,67.02717456]
[1644218202964,54.71310209,118.1,118.01,79.23717456]
[1644218206167,6.0,118.1,118.02,2.40925557]
[1644218206370,29.3763,118.13,118.03,12.7029]
[1644218206569,29.3763,118.13,118.03,43.4122]
[1644218206769,29.3763,118.13,118.04,12.21]
[1644218207169,40.86496878,118.12,118.05,37.87168145]
[1644218207570,46.86496878,118.12,118.05,38.12168145]
[1644218208577,6.0,118.12,118.05,44.12168145]
[1644218208777,6.0,118.12,118.05,45.8895837]
[1644218208975,29.5358,118.15,118.05,45.8895837]
[1644218209175,6.0,118.15,118.06,12.21]
[1644218209381,6.0,118.15,118.06,21.621]
[1644218209583,46.63971783,118.14,118.07,41.37276484]
[1644218209781,46.63971783,118.14,118.07,41.62276484]
[1644218209980,52.63971783,118.14,118.07,41.62276484]
[1644218211586,6.0,118.14,118.07,41.62276484]
[1644218211806,30.4701,118.16,118.07,41.62276484]
[1644218212213,30.7201,118.16,118.07,41.62276484]
[1644218212707,42.70155095,118.15,118.07,41.62276484]
[1644218213109,48.70155095,118.15,118.07,41.62276484]
[1644218218119,48.70155095,118.15,118.07,0.25]
[1644218218318,24.4644,118.14,118.05,24.3913]
[1644218218718,30.7144,118.14,118.05,24.3913]
[1644218219117,40.86357261,118.13,118.06,45.31066781]
[1644218219319,41.11357261,118.13,118.06,45.56066781]
[1644218219517,47.11357261,118.13,118.06,45.56066781]
[1644218219717,47.11357261,118.13,118.05,24.1413]
[1644218220720,47.11357261,118.13,118.05,70.94324422]
[1644218220920,47.11357261,118.13,118.05,24.1413]
[1644218221221,47.11357261,118.13,118.05,24.3913]
[1644218221421,59.32357261,118.13,118.05,24.3913]
[1644218221618,59.32357261,118.13,118.05,24.1413]
[1644218222020,59.32357261,118.13,118.05,62.74945597]
[1644218223020,59.32357261,118.13,118.05,62.99945597]
[1644218224925,59.32357261,118.13,118.05,24.3913]
[1644218225522,59.32357261,118.13,118.05,0.25]
[1644218225723,23.947,118.12,118.02,23.5505]
[1644218225923,48.0746897,118.11,118.03,40.93101809]
[1644218226123,54.0746897,118.11,118.03,40.93101809]
[1644218226523,54.3246897,118.11,118.03,40.93101809]
[1644218226723,54.0746897,118.11,118.03,40.93101809]
[1644218227124,54.0746897,118.11,118.03,41.18101809]
[1644218227724,6.0,118.11,118.03,41.18101809]
[1644218228126,29.947,118.12,118.03,41.18101809]
[1644218228625,68.39976,118.12,118.03,41.18101809]
[1644218229527,68.39976,118.12,118.03,42.94892034]
[1644218230326,29.947,118.12,118.03,42.94892034]
[1644218230727,29.947,118.12,118.03,55.15892034]
[1644218232730,29.947,118.12,118.05,40.99032059]
[1644218233130,29.947,118.12,118.05,41.24032059]
[1644218234931,6.0,118.12,118.05,43.00822284]
[1644218235133,18.21,118.19,118.05,74.72044192]
[1644218235335,18.21,118.19,118.06,23.8186]
[1644218235537,18.21,118.19,118.06,38.44213739]
[1644218235832,37.55061429,118.18,118.07,37.94665715]
[1644218236031,60.43161429,118.18,118.09,35.67149233]
[1644218236232,60.43161429,118.18,118.09,35.92149233]
[1644218236731,60.43161429,118.18,118.11,46.38985745]
[1644218237132,60.43161429,118.18,118.13,39.44847665]
[1644218237334,22.881,118.18,118.13,39.69847665]
[1644218237534,23.8457,118.21,118.14,1.76790225]
[1644218237734,12.21,118.23,118.14,2.01790225]
[1644218237959,46.3244,118.25,118.14,26.92990225]
[1644218238136,46.3244,118.25,118.15,1.76790225]
[1644218238335,35.41267192,118.24,118.16,37.31924655]
[1644218238534,46.3244,118.25,118.16,37.31924655]
[1644218238736,46.3244,118.25,118.17,1.76790225]
[1644218239135,46.3244,118.25,118.17,2.01790225]
[1644218239536,90.05875852,118.25,118.18,39.28337301]
[1644218239737,90.05875852,118.25,118.18,39.53337301]
[1644218239938,46.3244,118.25,118.18,39.53337301]
[1644218240139,52.3244,118.25,118.19,1.76790225]
[1644218240339,6.0,118.25,118.19,2.01790225]
[1644218240641,79.0827,118.27,118.19,2.01790225]
[1644218240840,101.6803,118.27,118.19,12.53490225]
[1644218241039,45.17826641,118.26,118.2,43.85818319]
[1644218241339,45.42826641,118.26,118.2,0.25]
[1644218241541,24.4468,118.25,118.2,0.25]
[1644218241743,4.229,118.28,118.2,0.25]
[1644218241942,12.21,118.31,118.2,2.01790225]
[1644218242142,49.1882,118.32,118.2,2.01790225]
[1644218242743,12.6891,118.3,118.2,40.21114507]
[1644218242945,36.195,118.3,118.2,2.01790225]
[1644218243151,54.655,118.3,118.15,25.48140225]
[1644218243347,5.42955393,118.29,118.15,2.01790225]
[1644218243547,60.0112,118.28,118.15,26.63640225]
[1644218243744,60.2612,118.28,118.15,26.63640225]
[1644218243946,35.12418193,118.27,118.16,46.98573302]
[1644218244146,41.12418193,118.27,118.16,46.98573302]
[1644218244346,54.06698193,118.27,118.16,46.98573302]
[1644218244546,12.21,118.26,118.16,46.98573302]
[1644218244746,38.34610491,118.25,118.13,1.76790225]
[1644218244949,62.71380491,118.25,118.12,12.21]
[1644218245148,4.23,118.24,118.12,1.76790225]
[1644218245348,23.5596,118.24,118.12,2.01790225]
[1644218245572,29.5596,118.24,118.12,2.01790225]
[1644218245782,42.37602463,118.23,118.13,44.35584375]
[1644218246178,48.62602463,118.23,118.13,46.123746]
[1644218247374,48.62602463,118.23,118.13,46.373746]
[1644218248175,48.37602463,118.23,118.13,46.373746]
[1644218249576,48.62602463,118.23,118.13,46.373746]
[1644218260188,60.83602463,118.23,118.13,46.373746]
[1644218260388,73.53332463,118.23,118.13,46.373746]
[1644218260689,73.53332463,118.23,118.13,44.60584375]
[1644218264894,74.73387856,118.23,118.13,44.60584375]
[1644218266992,74.73387856,118.23,118.13,44.35584375]
[1644218267193,12.7003,118.2,118.09,30.85198394]
[1644218267396,23.5151,118.19,118.09,29.65190225]
[1644218267695,29.5151,118.19,118.09,25.42190225]
[1644218267893,29.7651,118.19,118.09,25.42190225]
[1644218268094,38.78397838,118.18,118.1,34.46940442]
[1644218268295,39.03397838,118.18,118.1,34.46940442]
[1644218268494,45.03397838,118.18,118.1,34.46940442]
[1644218269698,45.03397838,118.18,118.1,34.71940442]
[1644218270399,23.5151,118.19,118.1,36.48730667]
[1644218270698,23.5151,118.19,118.1,37.68738836]
[1644218270699,29.5151,118.19,118.1,37.68738836]
[1644218271497,71.37156463,118.19,118.1,37.68738836]
[1644218271721,71.37156463,118.19,118.1,36.48730667]
[1644218272121,71.37156463,118.19,118.1,37.68738836]
[1644218273123,71.62156463,118.19,118.1,37.68738836]
[1644218273324,71.37156463,118.19,118.1,37.68738836]
[1644218273725,71.62156463,118.19,118.1,37.68738836]
[1644218276228,71.62156463,118.19,118.1,37.43738836]
[1644218276631,71.62156463,118.19,118.1,36.23730667]
[1644218276827,71.37156463,118.19,118.1,36.23730667]
[1644218277026,71.37156463,118.19,118.1,37.43738836]
[1644218277827,71.62156463,118.19,118.1,37.68738836]
[1644218278829,71.62156463,118.19,118.1,37.43738836]
[1644218279031,71.37156463,118.19,118.1,37.43738836]
[1644218279628,71.62156463,118.19,118.1,37.43738836]
[1644218280330,71.62156463,118.19,118.1,37.68738836]
[1644218281635,71.62156463,118.19,118.1,36.48730667]
[1644218282131,71.62156463,118.19,118.1,37.68738836]
[1644218282731,71.37156463,118.19,118.1,37.68738836]
[1644218283532,71.62156463,118.19,118.1,37.68738836]
[1644218283734,71.37156463,118.19,118.1,37.68738836]
[1644218284732,71.62156463,118.19,118.1,37.68738836]
[1644218285333,65.62156463,118.19,118.1,37.68738836]
[1644218286735,71.62156463,118.19,118.1,37.68738836]
[1644218288836,71.37156463,118.19,118.1,37.68738836]